bitfinex-derivatives/quotes_BTCF0:USTF0_20250926
["timestamp","ask_amount","ask_price","bid_price","bid_amount"]
[1758925047914,0.05565917,109600.0,109590.0,1.28255515]
[1758925048212,0.14683887,109600.0,109590.0,1.19154179]
[1758925049216,0.05565917,109600.0,109590.0,1.19154179]
[1758925052113,0.54683887,109600.0,109590.0,1.19154179]
[1758925057814,0.54683887,109600.0,109590.0,1.2568518]
[1758925058509,0.54683887,109600.0,109590.0,1.19154179]
[1758925059513,0.14683887,109600.0,109590.0,1.19154179]
[1758925060423,0.05565917,109600.0,109590.0,1.19154179]
[1758925061314,0.05565917,109600.0,109590.0,1.2568518]
[1758925061518,0.14683887,109600.0,109590.0,1.19154179]
[1758925062122,0.14683887,109600.0,109590.0,1.2568518]
[1758925063122,0.05565917,109600.0,109590.0,1.2568518]
[1758925063323,0.14683887,109600.0,109590.0,1.2568518]
[1758925072423,0.05565917,109600.0,109590.0,1.2568518]
[1758925073019,0.05565917,109600.0,109590.0,1.6176518]
[1758925077932,0.05565917,109600.0,109590.0,1.6154118]
[1758925079237,0.05565917,109600.0,109590.0,0.7689718]
[1758925079429,0.05565917,109600.0,109590.0,1.6152518]
[1758925079933,0.05565917,109600.0,109590.0,1.6152118]
[1758925081636,0.05565917,109600.0,109590.0,0.7689718]
[1758925081837,0.05565917,109600.0,109590.0,1.6152118]
[1758925082135,0.05565917,109600.0,109590.0,0.7689718]
[1758925082530,0.05565917,109600.0,109590.0,1.36341801]
[1758925082737,0.05565917,109600.0,109590.0,1.6150918]
[1758925083542,0.05565917,109600.0,109590.0,1.54978179]
[1758925086144,0.03419917,109600.0,109590.0,1.54978179]
[1758925088950,0.03419917,109600.0,109590.0,1.61527114]
[1758925090547,0.03419917,109600.0,109590.0,1.74115383]
[1758925092751,0.05601917,109600.0,109590.0,0.89503383]
[1758925092953,0.05601917,109600.0,109590.0,1.74159383]
[1758925095852,0.03419917,109600.0,109590.0,1.74159383]
[1758925098457,0.05601917,109600.0,109590.0,1.36415735]
[1758925098651,0.05601917,109600.0,109590.0,1.55293559]
[1758925098853,0.05601917,109600.0,109590.0,1.36415735]
[1758925099057,0.05601917,109600.0,109590.0,1.74171383]
[1758925107159,0.05601917,109600.0,109590.0,1.36415735]
[1758925107460,0.05601917,109600.0,109590.0,1.74171383]
[1758925108555,0.05601917,109600.0,109590.0,0.89503383]
[1758925108755,0.05601917,109600.0,109590.0,0.51747735]
[1758925108957,0.05601917,109600.0,109590.0,1.36827735]
[1758925109160,0.05601917,109600.0,109590.0,1.74583383]
[1758925110661,0.05601917,109600.0,109590.0,1.68034448]
[1758925114666,0.05601917,109600.0,109590.0,1.67974448]
[1758925114854,0.05601917,109600.0,109590.0,1.302188]
[1758925115058,0.05601917,109600.0,109590.0,1.67974448]
[1758925116265,0.03419917,109600.0,109590.0,1.67974448]
[1758925119066,0.03419917,109600.0,109590.0,1.302188]
[1758925119365,0.03419917,109600.0,109590.0,1.67974448]
[1758925122669,0.03419917,109600.0,109590.0,1.302188]
[1758925122870,0.03419917,109600.0,109590.0,1.49096624]
[1758925123367,0.03419917,109600.0,109590.0,1.67974448]
[1758925124864,0.03419917,109600.0,109590.0,1.302188]
[1758925125058,0.03419917,109600.0,109590.0,1.49096624]
[1758925128467,0.03419917,109600.0,109590.0,1.55648374]
[1758925129271,0.05699917,109600.0,109590.0,0.70628374]
[1758925129474,0.05699917,109600.0,109590.0,1.55656374]
[1758925131059,0.14817887,109600.0,109590.0,0.1567055]
[1758925131261,0.14817887,109600.0,109590.0,1.19568374]
[1758925131464,0.14817887,109600.0,109590.0,1.55648374]
[1758925131668,0.05699917,109600.0,109590.0,1.55648374]
[1758925138274,0.05699917,109600.0,109590.0,1.49096624]
[1758925144580,0.05699917,109600.0,109590.0,1.302188]
[1758925144767,0.14817887,109600.0,109590.0,0.0911881]
[1758925144972,0.14817887,109600.0,109590.0,1.19443413]
[1758925145177,0.54817887,109600.0,109590.0,0.34547413]
[1758925145378,0.54817887,109600.0,109590.0,1.19495413]
[1758925145981,0.90897887,109600.0,109590.0,1.19495413]
[1758925146674,0.90897887,109600.0,109590.0,1.00617589]
[1758925146875,0.90897887,109600.0,109590.0,1.19495413]
[1758925148684,1.09775711,109600.0,109590.0,0.15669589]
[1758925148885,0.1279881,109590.0,109580.0,1.20017922]
[1758925149087,0.4887881,109590.0,109580.0,1.26569334]
[1758925149388,0.4887881,109590.0,109580.0,0.32573724]
[1758925149578,0.4887881,109590.0,109580.0,1.10285236]
[1758925149778,1.07756634,109590.0,109580.0,0.06551412]
[1758925150182,0.1279964,109580.0,109570.0,0.34548956]
[1758925150382,0.1279964,109580.0,109570.0,1.19396956]
[1758925152376,0.4887964,109580.0,109570.0,0.25429236]
[1758925152581,0.8887964,109580.0,109570.0,0.06551412]
[1758925152778,0.8887964,109580.0,109570.0,0.15671882]
[1758925152994,0.1270047,109570.0,109560.0,0.16565064]
[1758925153285,0.1270047,109570.0,109560.0,1.01357064]
[1758925153885,0.1270047,109570.0,109560.0,1.26544536]
[1758925154192,0.4878047,109570.0,109560.0,1.01557064]
[1758925157180,0.1270047,109570.0,109560.0,1.01557064]
[1758925157385,0.0368,109570.0,109560.0,1.26744536]
[1758925157793,0.0368,109570.0,109560.0,1.01557064]
[1758925157983,0.0368,109570.0,109560.0,1.26744536]
[1758925158592,0.1280047,109570.0,109560.0,1.26744536]
[1758925158791,0.01359,109570.0,109560.0,2.3713901]
[1758925159087,0.1047947,109570.0,109560.0,2.11951538]
[1758925159287,0.01359,109570.0,109560.0,2.11951538]
[1758925164093,0.01359,109570.0,109560.0,2.05400126]
[1758925168499,0.01359,109570.0,109560.0,1.80212654]
[1758925168706,0.01359,109570.0,109560.0,2.05400126]
[1758925171506,0.01359,109570.0,109560.0,1.80212654]
[1758925171811,0.01359,109570.0,109560.0,2.05400126]
[1758925173016,0.01359,109570.0,109560.0,1.69320126]
[1758925173314,0.01359,109570.0,109560.0,2.05400126]
[1758925177512,0.01359,109570.0,109560.0,1.80212654]
[1758925177720,0.01359,109570.0,109560.0,2.05400126]
[1758925178318,0.01359,109570.0,109560.0,2.13581474]
[1758925179417,0.01359,109570.0,109560.0,1.73581474]
[1758925180118,0.01359,109570.0,109560.0,1.48394002]
[1758925180321,0.01359,109570.0,109560.0,1.73581474]
[1758925182320,0.03648,109570.0,109560.0,0.88789474]
[1758925182520,0.03648,109570.0,109560.0,1.73469474]
[1758925183823,0.03648,109570.0,109560.0,1.65288126]
[1758925185224,0.03648,109570.0,109560.0,1.65284126]
[1758925186319,0.03648,109570.0,109560.0,0.80608126]
[1758925186618,0.03648,109570.0,109560.0,1.65284126]
[1758925186822,0.03648,109570.0,109560.0,0.80608126]
[1758925187122,0.03648,109570.0,109560.0,1.65284126]
[1758925187710,0.03648,109570.0,109560.0,0.44528126]
[1758925187911,0.03648,109570.0,109560.0,0.19340654]
[1758925188118,0.43648,109570.0,109560.0,1.20077124]
[1758925188414,0.43648,109570.0,109560.0,1.56157124]
[1758925189219,0.43648,109570.0,109560.0,1.20077124]
[1758925192420,0.43648,109570.0,109560.0,1.56157124]
[1758925193728,0.43648,109570.0,109560.0,1.30969652]
[1758925194228,0.43648,109570.0,109560.0,1.56157124]
[1758925194919,0.5276847,109570.0,109560.0,1.20077124]
[1758925198425,0.43648,109570.0,109560.0,1.28258472]
[1758925200026,0.5276847,109570.0,109560.0,0.43582472]
[1758925200231,0.5276847,109570.0,109560.0,0.94877652]
[1758925200629,1.14035942,109570.0,109560.0,0.002]
[1758925200828,1.14035942,109570.0,109560.0,0.093213]
[1758925201031,1.14035942,109570.0,109560.0,0.002]
[1758925201727,0.127693,109560.0,109550.0,0.94718058]
[1758925202231,0.488493,109560.0,109550.0,0.94718058]
[1758925204631,0.489493,109560.0,109550.0,0.94718058]
[1758925206538,1.14136772,109560.0,109550.0,0.0001059]
[1758925207438,0.889493,109560.0,109550.0,0.0001059]
[1758925207739,0.889493,109560.0,109550.0,0.0913272]
[1758925209238,0.889493,109560.0,109550.0,0.0001059]
[1758925209439,1.14136772,109560.0,109550.0,0.0001059]
[1758925211539,1.14136772,109560.0,109550.0,0.0913272]
[1758925212540,1.21500718,109560.0,109550.0,0.0913272]
[1758925213635,1.22425232,109560.0,109550.0,0.0913272]
[1758925214544,1.16137577,109560.0,109550.0,0.0913272]
[1758925215741,2.00801577,109560.0,109550.0,0.0913272]
[1758925217247,1.16137577,109560.0,109550.0,0.0913272]
[1758925217445,2.00797577,109560.0,109550.0,0.0913272]
[1758925217746,1.16137577,109560.0,109550.0,0.0913272]
[1758925218138,2.00797577,109560.0,109550.0,0.0913272]
[1758925218540,1.16137577,109560.0,109550.0,0.0913272]
[1758925218734,2.00797577,109560.0,109550.0,0.0913272]
[1758925218940,1.99873063,109560.0,109550.0,0.0913272]
[1758925220047,1.15213063,109560.0,109550.0,0.0913272]
[1758925220247,1.99873063,109560.0,109550.0,0.0913272]
[1758925224749,2.1877288,109560.0,109550.0,0.0001059]
[1758925229154,2.21149714,109560.0,109550.0,0.0001059]
[1758925231756,2.21149714,109560.0,109550.0,0.0913272]
[1758925235258,2.1877288,109560.0,109550.0,0.0913272]
[1758925235958,2.2114979,109560.0,109550.0,0.0001059]
[1758925237254,2.2114979,109560.0,109550.0,0.0913272]
[1758925238559,2.2113779,109560.0,109550.0,0.0913272]
[1758925238960,1.3648979,109560.0,109550.0,0.0913272]
[1758925239162,2.2113379,109560.0,109550.0,0.0913272]
[1758925239460,1.8113379,109560.0,109550.0,0.0913272]
[1758925241162,1.7875688,109560.0,109550.0,0.0913272]
[1758925241957,1.81129752,109560.0,109550.0,0.0913272]
[1758925242157,0.9411288,109560.0,109550.0,0.0913272]
[1758925242460,1.81129754,109560.0,109550.0,0.0913272]
[1758925243866,1.81132627,109560.0,109550.0,0.0001059]
[1758925245764,0.1264296,109540.0,109530.0,0.0912358]
[1758925245959,0.126438,109530.0,109520.0,0.28931031]
[1758925246159,0.67623617,109530.0,109520.0,0.0912408]
[1758925246761,0.67634207,109530.0,109520.0,0.0912408]
[1758925246956,0.67434207,109530.0,109520.0,0.28023897]
[1758925247766,0.67434207,109530.0,109520.0,0.28423897]
[1758925249467,0.67434207,109530.0,109520.0,0.28023897]
[1758925249674,0.67534207,109530.0,109520.0,0.0912408]
[1758925249873,0.67534207,109530.0,109520.0,0.28023897]
[1758925250079,0.67534207,109530.0,109520.0,0.0912408]
[1758925252480,0.4863439,109530.0,109520.0,0.0912408]
[1758925252680,0.67534207,109530.0,109520.0,0.0912408]
[1758925252881,0.67534207,109530.0,109520.0,0.28023897]
[1758925253082,1.52162207,109530.0,109520.0,0.28023897]
[1758925260181,0.4863439,109530.0,109520.0,0.28023897]
[1758925260385,1.3324639,109530.0,109520.0,0.28023897]
[1758925261286,1.3324639,109530.0,109520.0,0.0912408]
[1758925261585,1.52146207,109530.0,109520.0,0.28023897]
[1758925262279,1.52146207,109530.0,109520.0,0.28024447]
[1758925262579,1.52146207,109530.0,109510.0,0.46137857]
[1758925262580,0.1264463,109520.0,109510.0,0.10057907]
[1758925262785,0.1264546,109510.0,109500.0,0.64276144]
[1758925263579,0.1264546,109510.0,109500.0,0.65209074]
[1758925264388,0.1264546,109510.0,109500.0,0.28958287]
[1758925265784,0.31545277,109510.0,109500.0,0.29158287]
[1758925267281,0.67625277,109510.0,109500.0,0.29158287]
[1758925267481,0.67625277,109510.0,109500.0,0.28225357]
[1758925267789,0.67625277,109510.0,109500.0,0.0932554]
[1758925268188,0.67625277,109510.0,109500.0,0.28225357]
[1758925268591,0.67625277,109510.0,109500.0,0.0932554]
[1758925269489,0.67625277,109510.0,109500.0,0.093263]
[1758925270181,0.67625277,109510.0,109500.0,0.091263]
[1758925270381,1.52225277,109510.0,109500.0,0.28026117]
[1758925271487,0.67625277,109510.0,109500.0,0.28026117]
[1758925271989,1.52221277,109510.0,109500.0,0.28026117]
[1758925272391,0.67625277,109510.0,109500.0,0.28026117]
[1758925272693,1.52217277,109510.0,109500.0,0.28026117]
[1758925273493,0.67625277,109510.0,109500.0,0.28026117]
[1758925273681,1.52217277,109510.0,109500.0,0.28026117]
[1758925274996,0.67625277,109510.0,109500.0,0.28026117]
[1758925275194,0.67625277,109510.0,109500.0,0.091263]
[1758925275594,1.52213277,109510.0,109500.0,0.091263]
[1758925276596,1.3331346,109510.0,109500.0,0.091263]
[1758925277602,0.73945514,109510.0,109500.0,0.091263]
[1758925277800,1.58537514,109510.0,109500.0,0.091263]
[1758925278389,0.091263,109500.0,109490.0,0.36991887]
[1758925278699,0.73906554,109500.0,109490.0,0.10038837]
[1758925279195,0.486865,109500.0,109490.0,0.0912695]
[1758925279390,0.73906554,109500.0,109490.0,0.0912695]
[1758925279698,0.1239713,109490.0,109480.0,0.0912734]
[1758925279900,0.4847713,109490.0,109480.0,0.0912734]
[1758925280092,0.4847713,109490.0,109480.0,0.10035625]
[1758925282691,0.3955,109490.0,109480.0,0.10035625]
[1758925283900,0.4867713,109490.0,109480.0,0.10035625]
[1758925289103,0.4867713,109490.0,109480.0,0.35255679]
[1758925289904,0.4867713,109490.0,109480.0,0.10035625]
[1758925295811,0.4867713,109490.0,109480.0,0.35255679]
[1758925296203,0.4867713,109490.0,109480.0,0.10035625]
[1758925299910,0.4867713,109490.0,109480.0,0.35255679]
[1758925300109,0.4867713,109490.0,109480.0,0.10035625]
[1758925302213,0.01298,109490.0,109480.0,1.00475733]
[1758925302405,0.01298,109490.0,109480.0,0.86115625]
[1758925302601,0.1260413,109490.0,109480.0,1.95859679]
[1758925303308,0.1260413,109490.0,109480.0,0.46115625]
[1758925303511,0.1260413,109490.0,109480.0,1.30635625]
[1758925304310,0.1260413,109490.0,109480.0,0.94555625]
[1758925304611,0.4868413,109490.0,109480.0,0.94555625]
[1758925306015,0.4868413,109490.0,109480.0,0.10035625]
[1758925311612,0.03477,109490.0,109480.0,0.35255679]
[1758925311812,0.03477,109490.0,109480.0,0.71335679]
[1758925312211,0.1260413,109490.0,109480.0,0.46115625]
[1758925312411,0.1260413,109490.0,109480.0,0.71335679]
[1758925313618,0.03477,109490.0,109480.0,0.71335679]
[1758925323328,0.03477,109490.0,109480.0,0.46115625]
[1758925323527,0.03477,109490.0,109480.0,0.71335679]
[1758925325532,0.03477,109490.0,109480.0,1.55823679]
[1758925329634,0.03777,109490.0,109480.0,1.55823679]
[1758925331132,0.1290413,109490.0,109480.0,1.55823679]
[1758925332031,0.03777,109490.0,109480.0,1.55823679]
[1758925332633,0.1290413,109490.0,109480.0,1.55823679]
[1758925338632,0.1290413,109490.0,109480.0,1.68436027]
[1758925340736,0.1290413,109490.0,109480.0,1.32356027]
[1758925352449,0.03777,109490.0,109480.0,1.68436027]
[1758925353349,0.1290413,109490.0,109480.0,1.68436027]
[1758925353844,0.1290413,109490.0,109480.0,1.32356027]
[1758925355846,0.03777,109490.0,109480.0,1.32356027]
[1758925356054,0.03777,109490.0,109480.0,1.68436027]
[1758925356956,0.03777,109490.0,109480.0,1.30603625]
[1758925357158,0.03777,109490.0,109480.0,1.68436027]
[1758925357655,0.1290413,109490.0,109480.0,1.68436027]
[1758925357855,0.03777,109490.0,109480.0,1.68436027]
[1758925360158,0.03777,109490.0,109480.0,1.32356027]
[1758925360560,0.03777,109490.0,109480.0,1.68436027]
[1758925362457,0.03777,109490.0,109480.0,1.32356027]
[1758925363759,0.03777,109490.0,109480.0,1.68436027]
[1758925364860,0.03777,109490.0,109480.0,1.32264027]
[1758925366560,0.03777,109490.0,109480.0,1.68344027]
[1758925367055,0.03777,109490.0,109480.0,2.08344027]
[1758925367257,0.01598,109490.0,109480.0,2.08344027]
[1758925368160,0.01598,109490.0,109480.0,2.27260228]
[1758925368361,0.01298,109490.0,109480.0,2.36393899]
[1758925368660,0.01498,109490.0,109480.0,2.44575247]
[1758925369462,0.01498,109490.0,109480.0,2.44567247]
[1758925370256,0.01298,109490.0,109480.0,2.44567247]
[1758925372352,0.013082,109500.0,109490.0,0.0912713]
[1758925372558,0.013082,109500.0,109490.0,0.83039532]
[1758925374063,0.015082,109500.0,109490.0,0.83039532]
[1758925375963,0.015082,109500.0,109490.0,0.92172369]
[1758925378865,0.015082,109500.0,109490.0,1.76528369]
[1758925379068,0.015082,109500.0,109490.0,0.92172369]
[1758925379366,0.015082,109500.0,109490.0,1.76528369]
[1758925380068,0.015082,109500.0,109490.0,0.92172369]
[1758925380672,0.015082,109500.0,109490.0,0.54339967]
[1758925380864,0.015082,109500.0,109490.0,1.76524369]
[1758925381263,0.015082,109500.0,109490.0,0.92172369]
[1758925381766,0.015082,109500.0,109490.0,1.76520369]
[1758925382267,0.015082,109500.0,109490.0,0.92172369]
[1758925382462,0.015082,109500.0,109490.0,1.76520369]
[1758925382664,0.015082,109500.0,109490.0,0.92172369]
[1758925382864,0.015082,109500.0,109490.0,1.76520369]
[1758925383273,0.015082,109500.0,109490.0,0.92172369]
[1758925383471,0.015082,109500.0,109490.0,1.76520369]
[1758925387174,0.015082,109500.0,109490.0,2.16520369]
[1758925391076,0.002102,109500.0,109490.0,2.16520369]
[1758925391275,0.01373,109510.0,109500.0,0.091263]
[1758925391578,0.01373,109510.0,109500.0,0.83038702]
[1758925392875,0.01373,109510.0,109500.0,1.01954903]
[1758925393074,0.01373,109510.0,109500.0,1.11086906]
[1758925393378,0.01573,109510.0,109500.0,0.92170705]
[1758925396674,0.01573,109510.0,109500.0,1.11086906]
[1758925397179,0.01573,109510.0,109500.0,0.92170705]
[1758925398285,0.01573,109510.0,109500.0,1.11086906]
[1758925398475,0.01573,109510.0,109500.0,1.51086906]
[1758925398676,0.01573,109510.0,109500.0,1.19542644]
[1758925400582,0.002,109510.0,109500.0,1.19542644]
[1758925400884,0.01373,109520.0,109500.0,1.36850292]
[1758925401085,0.01373,109520.0,109510.0,1.54721801]
[1758925401883,0.01473,109520.0,109510.0,1.63853804]
[1758925402789,0.01373,109520.0,109510.0,1.63853804]
[1758925402981,0.01473,109520.0,109510.0,1.63853804]
[1758925405404,0.01473,109520.0,109510.0,1.7122623]
[1758925405804,0.01473,109520.0,109510.0,1.46021889]
[1758925406004,0.01473,109520.0,109510.0,1.7122623]
[1758925410106,0.01473,109520.0,109510.0,0.8691423]
[1758925410299,0.01473,109520.0,109510.0,1.7121023]
[1758925412207,0.01473,109520.0,109510.0,0.61709889]
[1758925412408,0.01473,109520.0,109510.0,1.45997889]
[1758925412608,0.01473,109520.0,109510.0,1.7120223]
[1758925413207,0.01473,109520.0,109510.0,0.8691423]
[1758925413413,0.01473,109520.0,109510.0,1.7120223]
[1758925413604,0.01473,109520.0,109510.0,0.8691423]
[1758925413807,0.01473,109520.0,109510.0,1.7120223]
[1758925414810,0.01473,109520.0,109510.0,0.8691423]
[1758925415013,0.01473,109520.0,109510.0,1.7120223]
[1758925415311,0.01473,109520.0,109510.0,1.7119823]
[1758925417910,0.01373,109520.0,109510.0,1.7129823]
[1758925420412,0.01373,109520.0,109510.0,1.79479578]
[1758925421412,0.01373,109520.0,109510.0,1.7129823]
[1758925438133,0.01373,109520.0,109510.0,1.7126223]
[1758925438341,0.01373,109520.0,109510.0,0.8701423]
[1758925438632,0.01373,109520.0,109510.0,1.7126223]
[1758925441934,0.01373,109520.0,109510.0,1.7125423]
[1758925442236,0.01373,109520.0,109510.0,0.8701423]
[1758925442423,0.01373,109520.0,109510.0,1.7125423]
[1758925450943,0.01373,109520.0,109510.0,1.96458571]
[1758925451148,0.01373,109520.0,109510.0,1.7125423]
[1758925454958,0.01373,109520.0,109510.0,1.79458994]
[1758925459258,0.01373,109520.0,109510.0,1.7125423]
[1758925460357,0.01373,109520.0,109510.0,1.79458336]
[1758925460562,0.01373,109520.0,109510.0,1.92054435]
[1758925461766,0.01373,109520.0,109510.0,1.83850329]
[1758925462059,0.01373,109520.0,109510.0,2.19930329]
[1758925462762,0.01373,109520.0,109510.0,2.28134434]
[1758925462954,0.01373,109520.0,109510.0,2.19930329]
[1758925464663,0.01373,109520.0,109510.0,2.19830329]
[1758925464851,0.01373,109520.0,109510.0,2.20030329]
[1758925465459,0.01373,109520.0,109510.0,2.19786329]
[1758925465660,0.01373,109520.0,109510.0,2.19886329]
[1758925465862,0.01373,109520.0,109510.0,2.19882329]
[1758925469468,0.01358,109530.0,109520.0,0.3780044]
[1758925469669,0.03545,109530.0,109520.0,0.82084327]
[1758925470268,0.03545,109530.0,109520.0,0.91208957]
[1758925471463,0.01458,109530.0,109520.0,1.10109177]
[1758925472068,0.01458,109530.0,109520.0,0.91208957]
[1758925479170,0.01458,109530.0,109520.0,1.10109177]
[1758925479976,0.01458,109530.0,109520.0,0.91208957]
[1758925482681,0.03645,109530.0,109520.0,0.91208957]
[1758925482982,0.03645,109530.0,109520.0,0.8300507]
[1758925483782,0.01458,109530.0,109520.0,0.8300507]
[1758925483976,0.01458,109530.0,109520.0,1.0190529]
[1758925485775,0.01458,109530.0,109520.0,1.10109177]
[1758925487479,0.01358,109530.0,109520.0,1.10209177]
[1758925488381,0.01458,109530.0,109520.0,1.10109177]
[1758925488991,0.01458,109530.0,109520.0,1.94257177]
[1758925489179,0.01458,109530.0,109520.0,1.75356957]
[1758925494986,0.01458,109530.0,109520.0,1.94257177]
[1758925497886,0.01458,109530.0,109520.0,1.8605329]
[1758925501992,0.01358,109530.0,109520.0,1.8615329]
[1758925503908,0.01358,109530.0,109520.0,1.8605329]
[1758925504093,0.01458,109530.0,109520.0,1.8605329]
[1758925504900,0.01358,109530.0,109520.0,1.8615329]
[1758925507903,0.01358,109530.0,109520.0,1.94357177]
[1758925510414,0.01358,109530.0,109520.0,1.95283625]
[1758925511818,0.01358,109530.0,109520.0,1.76383405]
[1758925516013,0.01358,109530.0,109520.0,1.95283625]
[1758925518616,0.03596,109530.0,109520.0,1.76311405]
[1758925520621,0.03596,109530.0,109520.0,1.6370944]
[1758925521816,0.03596,109530.0,109520.0,0.7963344]
[1758925522023,0.127198,109530.0,109520.0,0.7963344]
[1758925522222,0.527198,109530.0,109520.0,0.7963344]
[1758925522417,0.527198,109530.0,109520.0,0.3618]
[1758925522623,0.527198,109530.0,109520.0,1.54567105]
[1758925523234,0.527198,109530.0,109520.0,0.70503105]
[1758925523434,0.527198,109530.0,109520.0,1.54567105]
[1758925524635,0.527198,109530.0,109520.0,1.2936863]
[1758925524824,0.527198,109530.0,109520.0,0.9328863]
[1758925527836,0.527198,109530.0,109520.0,1.18487105]
[1758925528041,0.527198,109530.0,109520.0,1.54567105]
[1758925529339,0.527198,109530.0,109520.0,1.2936863]
[1758925529637,0.527198,109530.0,109520.0,1.54567105]
[1758925530635,0.527198,109530.0,109520.0,1.2936863]
[1758925530833,0.527198,109530.0,109520.0,1.54567105]
[1758925537043,0.527198,109530.0,109520.0,1.18487105]
[1758925537244,0.527198,109530.0,109520.0,1.54567105]
[1758925539443,0.127198,109530.0,109520.0,1.54567105]
[1758925542244,0.127198,109530.0,109520.0,1.2936863]
[1758925542545,0.127198,109530.0,109520.0,1.54567105]
[1758925545348,0.03596,109530.0,109520.0,1.54567105]
[1758925553654,0.03596,109530.0,109520.0,1.62770992]
[1758925557052,0.01358,109530.0,109520.0,1.62770992]
[1758925557357,0.03649,109530.0,109520.0,1.6361744]
[1758925557547,0.03649,109530.0,109520.0,0.7963344]
[1758925557749,0.03649,109530.0,109520.0,1.6361744]
[1758925559658,0.03649,109530.0,109520.0,0.7963344]
[1758925559857,0.03649,109530.0,109520.0,1.6361344]
[1758925561857,0.03649,109530.0,109520.0,1.6360544]
[1758925562863,0.01358,109530.0,109520.0,0.7963344]
[1758925563160,0.01358,109530.0,109520.0,1.6360544]
[1758925563659,0.01358,109530.0,109520.0,0.7963344]
[1758925563862,0.01358,109530.0,109520.0,1.6360144]
[1758925571267,0.03465,109530.0,109520.0,0.54434965]
[1758925571455,0.03465,109530.0,109520.0,0.7963344]
[1758925571661,0.03465,109530.0,109520.0,1.6358544]
[1758925572867,0.01358,109530.0,109520.0,1.6358544]
[1758925578371,0.01358,109530.0,109520.0,1.71789327]
[1758925579566,0.01358,109530.0,109520.0,1.6358544]
[1758925580685,0.01358,109530.0,109520.0,1.76185865]
[1758925581967,0.01358,109530.0,109520.0,1.84389752]
[1758925584671,0.104818,109530.0,109520.0,1.00437752]
[1758925585072,0.104818,109530.0,109520.0,1.84353752]
[1758925586383,0.104818,109530.0,109520.0,1.00437752]
[1758925586585,0.104818,109530.0,109520.0,1.84353752]
[1758925587694,0.104818,109530.0,109520.0,1.00437752]
[1758925587890,0.104818,109530.0,109520.0,1.84349752]
[1758925588186,0.104818,109530.0,109520.0,1.00437752]
[1758925588792,0.104818,109530.0,109520.0,1.75221122]
[1758925589094,0.125888,109530.0,109520.0,0.47029235]
[1758925589299,0.125888,109530.0,109520.0,1.40061865]
[1758925589793,0.03465,109530.0,109520.0,1.40061865]
[1758925590283,0.125888,109530.0,109520.0,1.40061865]
[1758925596097,0.125888,109530.0,109520.0,1.02262965]
[1758925596297,0.125888,109530.0,109520.0,1.40061865]
[1758925599100,0.125888,109530.0,109520.0,1.76141865]
[1758925599397,0.125888,109530.0,109520.0,1.84345752]
[1758925599801,0.03465,109530.0,109520.0,1.76141865]
[1758925600102,0.03465,109530.0,109520.0,1.84345752]
[1758925603001,0.03465,109530.0,109520.0,1.76141865]
[1758925605498,0.2236445,109530.0,109520.0,1.4807208]
[1758925605694,0.03465,109530.0,109520.0,1.4807208]
[1758925610708,0.03465,109530.0,109520.0,1.6697153]
[1758925612612,0.03465,109530.0,109520.0,1.2917263]
[1758925612912,0.03465,109530.0,109520.0,1.6697153]
[1758925623518,0.01358,109530.0,109520.0,1.6697153]
[1758925623726,0.01358,109530.0,109520.0,1.76101865]
[1758925624321,0.01358,109530.0,109520.0,1.84305752]
[1758925625319,0.01358,109530.0,109520.0,1.00437752]
[1758925625624,0.01358,109530.0,109520.0,1.76053865]
[1758925632929,0.01358,109530.0,109520.0,1.84257752]
[1758925633631,0.01358,109530.0,109520.0,0.62638852]
[1758925633829,0.03583,109530.0,109520.0,1.84233752]
[1758925634428,0.03583,109530.0,109520.0,1.76029865]
[1758925634627,0.03583,109530.0,109520.0,1.84233752]
[1758925635033,0.03583,109530.0,109520.0,1.76029865]
[1758925635224,0.03583,109530.0,109520.0,0.92233865]
[1758925635425,0.03583,109530.0,109520.0,1.84229752]
[1758925636730,0.03583,109530.0,109520.0,1.76025865]
[1758925639431,0.03583,109530.0,109520.0,0.92233865]
[1758925639632,0.03583,109530.0,109520.0,1.76013865]
[1758925640625,0.03583,109530.0,109520.0,1.63417577]
[1758925649344,0.03583,109530.0,109520.0,1.71621464]
[1758925655037,0.03583,109530.0,109520.0,1.63417577]
[1758925658363,0.03583,109530.0,109520.0,1.38214965]
[1758925658558,0.03583,109530.0,109520.0,1.63417577]
[1758925660165,0.03583,109530.0,109520.0,0.79637577]
[1758925660358,0.03583,109530.0,109520.0,1.63365577]
[1758925662157,0.03583,109530.0,109520.0,1.71569464]
[1758925662955,0.01358,109530.0,109520.0,1.63365577]
[1758925664365,0.01358,109530.0,109520.0,1.71569464]
[1758925674873,0.0355,109530.0,109520.0,1.71517464]
[1758925675374,0.0355,109530.0,109520.0,1.63313577]
[1758925675674,0.0355,109530.0,109520.0,1.71517464]
[1758925677674,0.01358,109530.0,109520.0,1.71517464]
[1758925677973,0.01358,109530.0,109520.0,1.63313577]
[1758925683677,0.01358,109530.0,109520.0,0.79637577]
[1758925683980,0.0355,109530.0,109520.0,1.63285577]
[1758925684578,0.0355,109530.0,109520.0,1.38082965]
[1758925684777,0.0355,109530.0,109520.0,1.63285577]
[1758925691588,0.0355,109530.0,109520.0,1.63269577]
[1758925691890,0.0355,109530.0,109520.0,0.54434965]
[1758925692088,0.0355,109530.0,109520.0,1.63265577]
[1758925693900,0.0355,109530.0,109520.0,0.79637577]
[1758925694081,0.0355,109530.0,109520.0,1.63265577]
[1758925699994,0.0355,109530.0,109520.0,1.46266852]
[1758925700195,0.0355,109530.0,109520.0,1.71469464]
[1758925702697,0.0355,109530.0,109520.0,1.8407153]
[1758925704697,0.126738,109530.0,109520.0,1.8407153]
[1758925704900,0.126738,109530.0,109520.0,1.0044353]
[1758925705290,0.126738,109530.0,109520.0,1.8403153]
[1758925705998,0.126738,109530.0,109520.0,1.75827643]
[1758925708497,0.01358,109530.0,109520.0,1.75827643]
[1758925715793,0.01358,109530.0,109520.0,1.8403153]
[1758925719010,0.01358,109530.0,109520.0,1.75827643]
[1758925729113,0.01358,109530.0,109520.0,1.8403153]
[1758925736322,0.01358,109530.0,109520.0,1.46226852]
[1758925736521,0.01358,109530.0,109520.0,1.8403153]
[1758925743612,0.01358,109530.0,109520.0,1.0044353]
[1758925743818,0.01358,109530.0,109520.0,1.8397953]
[1758925744632,0.01358,109530.0,109520.0,1.0044353]
[1758925745034,0.01358,109530.0,109520.0,1.8397953]
[1758925748936,0.104818,109530.0,109520.0,1.0044353]
[1758925749134,0.01358,109530.0,109520.0,1.8397553]
[1758925749435,0.01358,109530.0,109520.0,1.0044353]
[1758925749631,0.01358,109530.0,109520.0,1.8397553]
[1758925749836,0.01358,109530.0,109520.0,1.0044353]
[1758925750138,0.01358,109530.0,109520.0,1.8397153]